[Event "*** Titled Tuesday Blitz"]
[Site "Chess.com"]
[Date "2021.03.30"]
[Round "6"]
[White "GMHess"]
[Black "Sueetin"]
[Result "1/2-1/2"]
[WhiteElo "2749"]
[BlackElo "2433"]
[TimeControl "180+1"]
[EndTime "11:06:39 PDT"]
[Termination "Game drawn by repetition"]

1. b3 {[%clk 0:03:00.9]} 1... e5 {[%clk 0:02:58.3]} 2. Bb2 {[%clk 0:02:59.5]}
2... Nc6 {[%clk 0:02:57.8]} 3. h3 {[%clk 0:02:59.9]} 3... f6 {[%clk 0:02:57.2]}
4. e3 {[%clk 0:02:53.1]} 4... d5 {[%clk 0:02:57.2]} 5. d4 {[%clk 0:02:53.2]}
5... e4 {[%clk 0:02:45.7]} 6. c4 {[%clk 0:02:53]} 6... f5 {[%clk 0:02:36.8]} 7.
cxd5 {[%clk 0:02:47.7]} 7... Nb4 {[%clk 0:02:37.1]} 8. Nc3 {[%clk 0:02:46.8]}
8... Nf6 {[%clk 0:02:35.7]} 9. Bb5+ {[%clk 0:02:46.1]} 9... Bd7 {[%clk
0:02:34.3]} 10. Bc4 {[%clk 0:02:46]} 10... b5 {[%clk 0:02:21.7]} 11. Nxb5 {[%clk
0:02:38.7]} 11... Nbxd5 {[%clk 0:02:21.5]} 12. Nc3 {[%clk 0:02:25.2]} 12... c6
{[%clk 0:02:12.1]} 13. Nge2 {[%clk 0:02:22.5]} 13... Bd6 {[%clk 0:02:11.7]} 14.
a3 {[%clk 0:01:37.5]} 14... O-O {[%clk 0:02:11.2]} 15. Na4 {[%clk 0:01:26.2]}
15... Kh8 {[%clk 0:02:06.7]} 16. Nc5 {[%clk 0:01:22]} 16... Bc8 {[%clk
0:02:05.2]} 17. g3 {[%clk 0:01:16.3]} 17... a5 {[%clk 0:01:55]} 18. Nf4 {[%clk
0:01:05]} 18... g5 {[%clk 0:01:34.3]} 19. Nfe6 {[%clk 0:01:03]} 19... Bxe6
{[%clk 0:01:25.9]} 20. Nxe6 {[%clk 0:00:55.9]} 20... Qe7 {[%clk 0:01:10.4]} 21.
Nxf8 {[%clk 0:00:46.1]} 21... Rxf8 {[%clk 0:01:11.3]} 22. Qd2 {[%clk 0:00:23.9]}
22... f4 {[%clk 0:01:07.2]} 23. gxf4 {[%clk 0:00:21]} 23... gxf4 {[%clk
0:01:07.4]} 24. Rg1 {[%clk 0:00:18.9]} 24... fxe3 {[%clk 0:00:49.6]} 25. fxe3
{[%clk 0:00:18]} 25... Nh5 {[%clk 0:00:40.2]} 26. O-O-O {[%clk 0:00:13.7]} 26...
Bxa3 {[%clk 0:00:38.2]} 27. Bxd5 {[%clk 0:00:09.4]} 27... cxd5 {[%clk
0:00:37.2]} 28. Qxa5 {[%clk 0:00:09.5]} 28... Rc8+ {[%clk 0:00:31.3]} 29. Kb1
{[%clk 0:00:09.2]} 29... Bxb2 {[%clk 0:00:30.6]} 30. Kxb2 {[%clk 0:00:07.9]}
30... Nf6 {[%clk 0:00:27.9]} 31. Rc1 {[%clk 0:00:06.6]} 31... Rf8 {[%clk
0:00:23.6]} 32. Qc7 {[%clk 0:00:04.4]} 32... Nd7 {[%clk 0:00:23.8]} 33. Rcf1
{[%clk 0:00:03.2]} 33... Rb8 {[%clk 0:00:19.6]} 34. Rc1 {[%clk 0:00:02.5]} 34...
Qb4 {[%clk 0:00:18.2]} 35. Rc3 {[%clk 0:00:02.7]} 35... Ra8 {[%clk 0:00:15.4]}
36. Qxd7 {[%clk 0:00:02.2]} 36... Qa3+ {[%clk 0:00:14.3]} 37. Kc2 {[%clk
0:00:02.7]} 37... Qa2+ {[%clk 0:00:13.5]} 38. Kd1 {[%clk 0:00:03.2]} 38... Qb1+
{[%clk 0:00:11.8]} 39. Rc1 {[%clk 0:00:03.2]} 39... Qd3+ {[%clk 0:00:12]} 40.
Ke1 {[%clk 0:00:03.7]} 40... Qxe3+ {[%clk 0:00:12.5]} 41. Kf1 {[%clk 0:00:04.3]}
41... Qf3+ {[%clk 0:00:11.9]} 42. Ke1 {[%clk 0:00:04.4]} 42... Qe3+ {[%clk
0:00:12.4]} 43. Kf1 {[%clk 0:00:04.8]} 43... Qf3+ {[%clk 0:00:06.9]} 44. Ke1
{[%clk 0:00:05.2]} 44... Qe3+ {[%clk 0:00:06.9]} 1/2-1/2

[Event "*** Titled Tuesday Blitz"]
[Site "Chess.com"]
[Date "2021.03.30"]
[Round "6"]
[White "ShapkinAnatoliy"]
[Black "Eliwood44"]
[Result "1-0"]
[WhiteElo "2665"]
[BlackElo "2505"]
[TimeControl "180+1"]
[EndTime "11:06:41 PDT"]
[Termination "ShapkinAnatoliy won by checkmate"]

1. d4 {[%clk 0:03:00.9]} 1... Nf6 {[%clk 0:02:59.8]} 2. c4 {[%clk 0:03:00.2]}
2... e6 {[%clk 0:02:59.3]} 3. g3 {[%clk 0:02:59.9]} 3... Bb4+ {[%clk 0:02:54.7]}
4. Bd2 {[%clk 0:02:59.1]} 4... Nc6 {[%clk 0:02:50.2]} 5. Bxb4 {[%clk 0:02:53.7]}
5... Nxb4 {[%clk 0:02:49.2]} 6. Bg2 {[%clk 0:02:54.2]} 6... O-O {[%clk
0:02:47.9]} 7. Nf3 {[%clk 0:02:52.6]} 7... d6 {[%clk 0:02:45]} 8. Nc3 {[%clk
0:02:49]} 8... Nc6 {[%clk 0:02:44.7]} 9. O-O {[%clk 0:02:45.5]} 9... Re8 {[%clk
0:02:44.2]} 10. e4 {[%clk 0:02:43.9]} 10... e5 {[%clk 0:02:44]} 11. h3 {[%clk
0:02:44.6]} 11... a5 {[%clk 0:02:34.8]} 12. Re1 {[%clk 0:02:43.7]} 12... Bd7
{[%clk 0:02:22.7]} 13. Qd2 {[%clk 0:02:41.2]} 13... exd4 {[%clk 0:02:22]} 14.
Nxd4 {[%clk 0:02:38.8]} 14... Nxd4 {[%clk 0:02:22.2]} 15. Qxd4 {[%clk
0:02:36.7]} 15... Bc6 {[%clk 0:02:22.7]} 16. Rad1 {[%clk 0:02:34.2]} 16... Nd7
{[%clk 0:02:16.3]} 17. f4 {[%clk 0:02:26.5]} 17... Nc5 {[%clk 0:02:15.2]} 18. b3
{[%clk 0:02:16.3]} 18... Ne6 {[%clk 0:02:13.8]} 19. Qd2 {[%clk 0:02:10.4]} 19...
Qf6 {[%clk 0:02:13.2]} 20. Nd5 {[%clk 0:01:54.7]} 20... Bxd5 {[%clk 0:02:12]}
21. cxd5 {[%clk 0:01:55.6]} 21... Nc5 {[%clk 0:02:11.6]} 22. Qc2 {[%clk
0:01:45.4]} 22... b6 {[%clk 0:02:09.6]} 23. a3 {[%clk 0:01:44.1]} 23... Qg6
{[%clk 0:02:06.1]} 24. b4 {[%clk 0:01:38.1]} 24... axb4 {[%clk 0:02:05.2]} 25.
axb4 {[%clk 0:01:39]} 25... Na6 {[%clk 0:02:03.7]} 26. Qb3 {[%clk 0:01:30]}
26... h5 {[%clk 0:01:59.4]} 27. Kh2 {[%clk 0:01:29.2]} 27... h4 {[%clk
0:01:58.4]} 28. g4 {[%clk 0:01:28.7]} 28... Qf6 {[%clk 0:01:58.6]} 29. Rf1
{[%clk 0:01:16.4]} 29... Nb8 {[%clk 0:01:43.9]} 30. Rc1 {[%clk 0:01:13.6]} 30...
Ra7 {[%clk 0:01:43.5]} 31. Rc4 {[%clk 0:01:08.4]} 31... Nd7 {[%clk 0:01:37.8]}
32. Qc2 {[%clk 0:01:04.6]} 32... Qd8 {[%clk 0:01:32.9]} 33. Rc1 {[%clk
0:01:01.7]} 33... Nf6 {[%clk 0:01:26]} 34. Re1 {[%clk 0:00:55.8]} 34... Re7
{[%clk 0:01:20.3]} 35. Qf2 {[%clk 0:00:46.8]} 35... Qa8 {[%clk 0:01:18.7]} 36.
Qxh4 {[%clk 0:00:45]} 36... Ra2 {[%clk 0:01:16.4]} 37. g5 {[%clk 0:00:40.1]}
37... Ne8 {[%clk 0:01:14]} 38. g6 {[%clk 0:00:40]} 38... fxg6 {[%clk 0:01:00.4]}
39. Qxe7 {[%clk 0:00:38.9]} 39... Nf6 {[%clk 0:00:45.8]} 40. Rxc7 {[%clk
0:00:30.6]} 40... Nh5 {[%clk 0:00:42.7]} 41. Qg5 {[%clk 0:00:16.8]} 41... Qa3
{[%clk 0:00:32.2]} 42. Qxg6 {[%clk 0:00:11]} 42... Rxg2+ {[%clk 0:00:31.6]} 43.
Qxg2 {[%clk 0:00:09.3]} 43... Qxb4 {[%clk 0:00:31.5]} 44. Rec1 {[%clk
0:00:07.3]} 44... Qd4 {[%clk 0:00:27.5]} 45. Rg1 {[%clk 0:00:06.9]} 45... Qf6
{[%clk 0:00:25.8]} 46. Qg5 {[%clk 0:00:06.3]} 46... Qb2+ {[%clk 0:00:24.1]} 47.
Rg2 {[%clk 0:00:06.9]} 47... Qc1 {[%clk 0:00:23.1]} 48. Rxc1 {[%clk 0:00:06.3]}
48... Nxf4 {[%clk 0:00:22.7]} 49. Rc8+ {[%clk 0:00:07.1]} 49... Kf7 {[%clk
0:00:22.3]} 50. Qxg7# {[%clk 0:00:08]} 1-0

[Event "*** Titled Tuesday Blitz"]
[Site "Chess.com"]
[Date "2021.03.30"]
[Round "6"]
[White "Grineva_Marianna"]
[Black "Klavdia_Nik"]
[Result "0-1"]
[WhiteElo "2261"]
[BlackElo "2037"]
[TimeControl "180+1"]
[EndTime "11:06:41 PDT"]
[Termination "Klavdia_Nik won on time"]

1. e4 {[%clk 0:03:00.9]} 1... g6 {[%clk 0:02:54.6]} 2. d4 {[%clk 0:03:00.2]}
2... Bg7 {[%clk 0:02:52.5]} 3. Nc3 {[%clk 0:02:59.9]} 3... d6 {[%clk 0:02:52.2]}
4. f4 {[%clk 0:02:59.6]} 4... Nd7 {[%clk 0:02:50.2]} 5. Nf3 {[%clk 0:02:59.4]}
5... e6 {[%clk 0:02:42.7]} 6. Be3 {[%clk 0:02:56.4]} 6... Ne7 {[%clk 0:02:43.1]}
7. Qd2 {[%clk 0:02:55.4]} 7... d5 {[%clk 0:02:38.3]} 8. exd5 {[%clk 0:02:38.7]}
8... exd5 {[%clk 0:02:28.2]} 9. O-O-O {[%clk 0:02:37.4]} 9... O-O {[%clk
0:02:25.7]} 10. g4 {[%clk 0:02:27.1]} 10... Nf6 {[%clk 0:02:25.7]} 11. h3 {[%clk
0:02:26.6]} 11... c6 {[%clk 0:02:13.6]} 12. Ne5 {[%clk 0:02:23.1]} 12... Ne4
{[%clk 0:02:08.6]} 13. Nxe4 {[%clk 0:02:18.2]} 13... dxe4 {[%clk 0:02:08.6]} 14.
Be2 {[%clk 0:02:03.6]} 14... Nd5 {[%clk 0:02:05.6]} 15. h4 {[%clk 0:01:56.9]}
15... f6 {[%clk 0:01:55.3]} 16. Nc4 {[%clk 0:01:51.7]} 16... b5 {[%clk
0:01:53.5]} 17. Na3 {[%clk 0:01:49.1]} 17... f5 {[%clk 0:01:50.3]} 18. g5 {[%clk
0:01:44.1]} 18... Rf7 {[%clk 0:01:39.6]} 19. h5 {[%clk 0:01:42.5]} 19... Be6
{[%clk 0:01:34]} 20. hxg6 {[%clk 0:01:40]} 20... hxg6 {[%clk 0:01:34.1]} 21. c4
{[%clk 0:01:22.2]} 21... Nxe3 {[%clk 0:01:14.9]} 22. Qxe3 {[%clk 0:01:20.3]}
22... b4 {[%clk 0:01:02.9]} 23. Nc2 {[%clk 0:01:16.8]} 23... Qa5 {[%clk
0:00:55]} 24. Kb1 {[%clk 0:01:08.1]} 24... Rb7 {[%clk 0:00:47.5]} 25. Qb3 {[%clk
0:00:52.7]} 25... Qc7 {[%clk 0:00:42.5]} 26. Rh4 {[%clk 0:00:37.9]} 26... a5
{[%clk 0:00:40.9]} 27. d5 {[%clk 0:00:35.5]} 27... cxd5 {[%clk 0:00:35.8]} 28.
cxd5 {[%clk 0:00:34.6]} 28... Bf7 {[%clk 0:00:35.7]} 29. Qh3 {[%clk 0:00:31.3]}
29... Rc8 {[%clk 0:00:30.4]} 30. Ne3 {[%clk 0:00:25.6]} 30... b3 {[%clk
0:00:16]} 31. axb3 {[%clk 0:00:12.7]} 31... Rxb3 {[%clk 0:00:15.2]} 32. Rh1
{[%clk 0:00:08]} 32... Kf8 {[%clk 0:00:12.2]} 33. Rh8+ {[%clk 0:00:07.2]} 33...
Bg8 {[%clk 0:00:12.3]} 34. Rxg8+ {[%clk 0:00:06.6]} 34... Kxg8 {[%clk
0:00:12.6]} 35. Qh7+ {[%clk 0:00:07.1]} 35... Kf7 {[%clk 0:00:12.4]} 36. Nd1
{[%clk 0:00:06.9]} 36... Qb7 {[%clk 0:00:08.5]} 37. Rh6 {[%clk 0:00:03.2]} 37...
Qb6 {[%clk 0:00:07.7]} 0-1

[Event "*** Titled Tuesday Blitz"]
[Site "Chess.com"]
[Date "2021.03.30"]
[Round "6"]
[White "Legendinunknown"]
[Black "annamaja"]
[Result "1-0"]
[WhiteElo "2588"]
[BlackElo "2350"]
[TimeControl "180+1"]
[EndTime "11:06:47 PDT"]
[Termination "Legendinunknown won on time"]

1. d4 {[%clk 0:03:00.9]} 1... d5 {[%clk 0:02:58.6]} 2. c4 {[%clk 0:02:57.6]}
2... c6 {[%clk 0:02:58.2]} 3. Nf3 {[%clk 0:02:54.9]} 3... Nf6 {[%clk 0:02:57.9]}
4. Nc3 {[%clk 0:02:55.8]} 4... e6 {[%clk 0:02:57.8]} 5. Bg5 {[%clk 0:02:52.3]}
5... Nbd7 {[%clk 0:02:57.5]} 6. e3 {[%clk 0:02:50.5]} 6... Qa5 {[%clk
0:02:54.6]} 7. cxd5 {[%clk 0:02:48.5]} 7... exd5 {[%clk 0:02:52.5]} 8. Bd3
{[%clk 0:02:41.7]} 8... Bd6 {[%clk 0:02:49.8]} 9. O-O {[%clk 0:02:39.9]} 9...
O-O {[%clk 0:02:46.7]} 10. Rc1 {[%clk 0:02:29.3]} 10... Re8 {[%clk 0:02:39.5]}
11. Nd2 {[%clk 0:02:24.3]} 11... h6 {[%clk 0:02:38.1]} 12. Bh4 {[%clk 0:02:21]}
12... b5 {[%clk 0:02:05.7]} 13. Nb3 {[%clk 0:02:12.7]} 13... Qb6 {[%clk
0:02:02.3]} 14. Qf3 {[%clk 0:02:06.9]} 14... Bb7 {[%clk 0:01:27.2]} 15. a3
{[%clk 0:01:58.2]} 15... a5 {[%clk 0:01:25.8]} 16. Bg3 {[%clk 0:01:50.7]} 16...
Bxg3 {[%clk 0:01:23.1]} 17. hxg3 {[%clk 0:01:43.7]} 17... a4 {[%clk 0:01:18]}
18. Nd2 {[%clk 0:01:41.9]} 18... b4 {[%clk 0:01:15]} 19. axb4 {[%clk 0:01:35.8]}
19... Qxb4 {[%clk 0:01:15.9]} 20. Rc2 {[%clk 0:01:36.3]} 20... c5 {[%clk
0:00:53.3]} 21. Na2 {[%clk 0:01:31.7]} 21... Qb6 {[%clk 0:00:49.5]} 22. Qf4
{[%clk 0:01:16.2]} 22... cxd4 {[%clk 0:00:29.9]} 23. exd4 {[%clk 0:01:06.7]}
23... Rac8 {[%clk 0:00:29.3]} 24. Nc3 {[%clk 0:01:03.9]} 24... Qb4 {[%clk
0:00:14.2]} 25. Ra1 {[%clk 0:01:00.3]} 25... Nb6 {[%clk 0:00:12.3]} 26. g4
{[%clk 0:00:54.7]} 26... Re6 {[%clk 0:00:08.1]} 27. Bf5 {[%clk 0:00:51.1]} 27...
Rce8 {[%clk 0:00:06.6]} 28. Bxe6 {[%clk 0:00:49.9]} 28... Rxe6 {[%clk
0:00:07.5]} 29. Nf3 {[%clk 0:00:48.5]} 29... Ba6 {[%clk 0:00:07.1]} 30. Ne5
{[%clk 0:00:47.1]} 30... g6 {[%clk 0:00:03.5]} 31. f3 {[%clk 0:00:36.5]} 31...
Kg7 {[%clk 0:00:03.1]} 32. Kh2 {[%clk 0:00:33.5]} 32... Qb3 {[%clk 0:00:03.5]}
33. Rf2 {[%clk 0:00:31.3]} 33... Nc4 {[%clk 0:00:01.8]} 34. Nxc4 {[%clk
0:00:28]} 34... Bxc4 {[%clk 0:00:02.7]} 35. Rxa4 {[%clk 0:00:26.9]} 35... g5
{[%clk 0:00:03.3]} 36. Qd2 {[%clk 0:00:25.6]} 36... Qb7 {[%clk 0:00:02.7]} 37.
Ra1 {[%clk 0:00:22.5]} 37... Qc7+ {[%clk 0:00:02.9]} 38. Kg1 {[%clk 0:00:22.5]}
38... Qe7 {[%clk 0:00:03.6]} 39. Kh2 {[%clk 0:00:19.5]} 39... Nd7 {[%clk
0:00:03.4]} 40. Qc2 {[%clk 0:00:18.1]} 40... Nb6 {[%clk 0:00:03.1]} 41. b3
{[%clk 0:00:18.1]} 41... Qd6+ {[%clk 0:00:01.9]} 42. Kg1 {[%clk 0:00:17.5]}
42... Qf4 {[%clk 0:00:01.9]} 43. bxc4 {[%clk 0:00:17.4]} 43... Nxc4 {[%clk
0:00:02.8]} 44. Nxd5 {[%clk 0:00:17]} 44... Qg3 {[%clk 0:00:02.7]} 45. Qxc4
{[%clk 0:00:16.7]} 45... Rd6 {[%clk 0:00:01.3]} 46. Ne3 {[%clk 0:00:16.5]} 46...
Qf4 {[%clk 0:00:01.3]} 47. Nf5+ {[%clk 0:00:17.4]} 1-0

[Event "*** Titled Tuesday Blitz"]
[Site "Chess.com"]
[Date "2021.03.30"]
[Round "6"]
[White "Bathory44"]
[Black "SaraciNderim"]
[Result "0-1"]
[WhiteElo "2664"]
[BlackElo "2817"]
[TimeControl "180+1"]
[EndTime "11:06:48 PDT"]
[Termination "SaraciNderim won on time"]

1. e4 {[%clk 0:03:00.9]} 1... e5 {[%clk 0:02:48.7]} 2. Nf3 {[%clk 0:03:00.4]}
2... Nc6 {[%clk 0:02:48.4]} 3. Bb5 {[%clk 0:02:59.7]} 3... a6 {[%clk 0:02:48]}
4. Bxc6 {[%clk 0:02:59.9]} 4... dxc6 {[%clk 0:02:47.8]} 5. Nc3 {[%clk
0:03:00.8]} 5... f6 {[%clk 0:02:44.6]} 6. d4 {[%clk 0:03:00.3]} 6... exd4 {[%clk
0:02:44.7]} 7. Nxd4 {[%clk 0:03:00.8]} 7... c5 {[%clk 0:02:42.6]} 8. Nde2 {[%clk
0:03:00.8]} 8... Qxd1+ {[%clk 0:02:41.7]} 9. Nxd1 {[%clk 0:03:01.7]} 9... Be6
{[%clk 0:02:40.4]} 10. Bf4 {[%clk 0:03:00.1]} 10... O-O-O {[%clk 0:02:39.9]} 11.
Ne3 {[%clk 0:03:00.5]} 11... Ne7 {[%clk 0:02:38.6]} 12. f3 {[%clk 0:02:52.3]}
12... h5 {[%clk 0:02:35.1]} 13. h4 {[%clk 0:02:51.7]} 13... Nc6 {[%clk 0:02:35]}
14. Kf2 {[%clk 0:02:45.4]} 14... Nd4 {[%clk 0:02:28]} 15. Rad1 {[%clk
0:02:33.2]} 15... Be7 {[%clk 0:02:27.4]} 16. c3 {[%clk 0:02:12.9]} 16... Nxe2
{[%clk 0:02:23.5]} 17. Kxe2 {[%clk 0:02:13.8]} 17... Bxa2 {[%clk 0:02:19.5]} 18.
c4 {[%clk 0:02:14]} 18... Rd4 {[%clk 0:02:08.7]} 19. Rc1 {[%clk 0:01:35.2]}
19... Bb3 {[%clk 0:01:52.3]} 20. Rc3 {[%clk 0:01:24.6]} 20... Ba4 {[%clk
0:01:52]} 21. Nf5 {[%clk 0:01:25]} 21... Rd7 {[%clk 0:01:35.8]} 22. Nxg7 {[%clk
0:01:08.4]} 22... Bd6 {[%clk 0:01:35.9]} 23. Ne6 {[%clk 0:01:02.8]} 23... Rg8
{[%clk 0:01:12.7]} 24. Bxd6 {[%clk 0:00:51.9]} 24... Rxg2+ {[%clk 0:00:54.2]}
25. Kf1 {[%clk 0:00:50.7]} 25... Rxb2 {[%clk 0:00:54.1]} 26. Bg3 {[%clk
0:00:50.6]} 26... Rd1+ {[%clk 0:00:48.6]} 27. Be1 {[%clk 0:00:49.8]} 27... Rxe1+
{[%clk 0:00:47.3]} 28. Kxe1 {[%clk 0:00:49.8]} 28... Rb1+ {[%clk 0:00:47.8]} 29.
Kf2 {[%clk 0:00:50.2]} 29... Rxh1 {[%clk 0:00:48.7]} 30. Nxc5 {[%clk 0:00:42.1]}
30... Be8 {[%clk 0:00:45.2]} 31. Ne6 {[%clk 0:00:38.5]} 31... b6 {[%clk
0:00:40.3]} 32. Kg3 {[%clk 0:00:33.1]} 32... a5 {[%clk 0:00:38.4]} 33. Rd3
{[%clk 0:00:32.8]} 33... Bd7 {[%clk 0:00:33.5]} 34. Nf4 {[%clk 0:00:30.8]} 34...
Be8 {[%clk 0:00:29.7]} 35. Nd5 {[%clk 0:00:28.8]} 35... Bf7 {[%clk 0:00:27.1]}
36. Nxf6 {[%clk 0:00:26]} 36... Bxc4 {[%clk 0:00:26.7]} 37. Rc3 {[%clk
0:00:26.4]} 37... b5 {[%clk 0:00:26.9]} 38. Nd5 {[%clk 0:00:15.2]} 38... Bxd5
{[%clk 0:00:20.5]} 39. exd5 {[%clk 0:00:16.1]} 39... Kd7 {[%clk 0:00:21]} 40.
Rc5 {[%clk 0:00:16.1]} 40... Rb1 {[%clk 0:00:20.1]} 41. f4 {[%clk 0:00:14.8]}
41... a4 {[%clk 0:00:20.2]} 42. Rc2 {[%clk 0:00:10.1]} 42... a3 {[%clk
0:00:19.7]} 43. f5 {[%clk 0:00:09.7]} 43... b4 {[%clk 0:00:18.9]} 44. f6 {[%clk
0:00:08.8]} 44... b3 {[%clk 0:00:17.1]} 45. f7 {[%clk 0:00:06.5]} 45... Rf1
{[%clk 0:00:16]} 46. Rc3 {[%clk 0:00:03.3]} 46... a2 {[%clk 0:00:15.6]} 0-1

[Event "*** Titled Tuesday Blitz"]
[Site "Chess.com"]
[Date "2021.03.30"]
[Round "6"]
[White "bazar-wokzal"]
[Black "ChronicUnhappiness"]
[Result "1-0"]
[WhiteElo "2569"]
[BlackElo "2341"]
[TimeControl "180+1"]
[EndTime "11:06:51 PDT"]
[Termination "bazar-wokzal won on time"]

1. e4 {[%clk 0:02:29]} 1... c5 {[%clk 0:02:58]} 2. c3 {[%clk 0:02:02.5]} 2... d5
{[%clk 0:02:51.1]} 3. exd5 {[%clk 0:02:02.1]} 3... Qxd5 {[%clk 0:02:50.9]} 4. d4
{[%clk 0:02:03]} 4... Nf6 {[%clk 0:02:51.2]} 5. Nf3 {[%clk 0:02:03.3]} 5... e6
{[%clk 0:02:44.2]} 6. a3 {[%clk 0:02:02.2]} 6... cxd4 {[%clk 0:02:43.9]} 7. cxd4
{[%clk 0:02:01.3]} 7... Be7 {[%clk 0:02:43.5]} 8. Nc3 {[%clk 0:02:01]} 8... Qd8
{[%clk 0:02:42.4]} 9. Bd3 {[%clk 0:02:00.1]} 9... b6 {[%clk 0:02:38.6]} 10. O-O
{[%clk 0:01:54.9]} 10... Bb7 {[%clk 0:02:37.2]} 11. Ne5 {[%clk 0:01:47.3]} 11...
O-O {[%clk 0:02:35.1]} 12. Bg5 {[%clk 0:01:43.1]} 12... Nbd7 {[%clk 0:02:33.8]}
13. Qe2 {[%clk 0:01:34.8]} 13... Nxe5 {[%clk 0:02:32.6]} 14. dxe5 {[%clk
0:01:34.3]} 14... Nd5 {[%clk 0:02:27.6]} 15. Qe4 {[%clk 0:01:33.1]} 15... g6
{[%clk 0:02:27.4]} 16. Bh6 {[%clk 0:01:31.7]} 16... Nxc3 {[%clk 0:02:03.8]} 17.
Qxb7 {[%clk 0:01:30]} 17... Qxd3 {[%clk 0:02:02.2]} 18. Qxe7 {[%clk 0:01:22.6]}
18... Nd5 {[%clk 0:01:47.9]} 19. Qg5 {[%clk 0:01:17.7]} 19... Rfc8 {[%clk
0:01:41.7]} 20. Rad1 {[%clk 0:01:13.4]} 20... Qf5 {[%clk 0:01:30.4]} 21. Qxf5
{[%clk 0:01:13.3]} 21... gxf5 {[%clk 0:01:30.2]} 22. Rd3 {[%clk 0:01:13.7]}
22... f4 {[%clk 0:01:29.9]} 23. Rh3 {[%clk 0:01:00.4]} 23... Rc2 {[%clk
0:01:00.1]} 24. g3 {[%clk 0:00:59.2]} 24... f3 {[%clk 0:00:34.1]} 25. Rh4 {[%clk
0:00:56.9]} 25... f5 {[%clk 0:00:26.8]} 26. exf6 {[%clk 0:00:54.8]} 26... Rac8
{[%clk 0:00:26.2]} 27. Rg4+ {[%clk 0:00:50.6]} 27... Kf7 {[%clk 0:00:25.7]} 28.
Rg7+ {[%clk 0:00:46.2]} 28... Kxf6 {[%clk 0:00:23.7]} 29. b4 {[%clk 0:00:44.7]}
29... R8c7 {[%clk 0:00:17.8]} 30. Rg8 {[%clk 0:00:42.1]} 30... Re2 {[%clk
0:00:12.9]} 31. h4 {[%clk 0:00:31.9]} 31... Rcc2 {[%clk 0:00:08.7]} 32. h5
{[%clk 0:00:26.2]} 32... Nc3 {[%clk 0:00:08.6]} 33. Rf8+ {[%clk 0:00:25.5]}
33... Ke5 {[%clk 0:00:08.2]} 34. Rxf3 {[%clk 0:00:26.2]} 34... Ne4 {[%clk
0:00:08.2]} 35. Bg7+ {[%clk 0:00:24.5]} 35... Kd5 {[%clk 0:00:07.9]} 36. Rd1+
{[%clk 0:00:25.1]} 36... Kc4 {[%clk 0:00:07.4]} 37. Bd4 {[%clk 0:00:21.7]} 37...
Red2 {[%clk 0:00:05.1]} 38. Rxd2 {[%clk 0:00:20.5]} 38... Nxd2 {[%clk
0:00:05.1]} 39. Rf4 {[%clk 0:00:20.9]} 39... Kd3 {[%clk 0:00:05.3]} 40. Be5
{[%clk 0:00:20.3]} 40... Ne4 {[%clk 0:00:04.8]} 41. Kg2 {[%clk 0:00:19.5]} 41...
Nd2 {[%clk 0:00:02.4]} 42. Bb8 {[%clk 0:00:17.2]} 42... a6 {[%clk 0:00:01.7]}
43. Ba7 {[%clk 0:00:15.2]} 43... Nc4 {[%clk 0:00:02.6]} 44. h6 {[%clk 0:00:14]}
1-0